bitfinex-derivatives/quotes_ETHF0:USTF0_20260112
["timestamp","ask_amount","ask_price","bid_price","bid_amount"]
[1768192335285,0.88140391,3158.6,3157.8,0.96511777]
[1768192335486,0.00375169,3158.9,3157.8,0.96511777]
[1768192335687,0.88131178,3158.8,3157.8,0.96511777]
[1768192335986,0.88131178,3158.7,3157.8,0.96511777]
[1768192336186,0.00375169,3158.9,3157.8,0.96511777]
[1768192336187,0.88131178,3158.6,3157.8,0.96511777]
[1768192336389,0.00375169,3158.9,3157.8,0.96511777]
[1768192336587,0.88125293,3158.8,3157.8,0.96511777]
[1768192336790,0.88125293,3158.7,3157.8,0.96511777]
[1768192336983,0.88125293,3158.6,3157.8,0.96511777]
[1768192337183,0.00375169,3158.9,3157.8,0.96511777]
[1768192337484,0.88122618,3158.8,3157.8,0.96511777]
[1768192337682,0.88122618,3158.7,3157.8,0.96511777]
[1768192337883,0.88122618,3158.6,3157.8,0.96511777]
[1768192338084,0.00375169,3158.9,3157.8,0.96511777]
[1768192338284,0.88123373,3158.8,3157.8,0.96511777]
[1768192338481,0.88123373,3158.7,3157.8,0.96511777]
[1768192338681,0.88123373,3158.6,3157.8,0.96511777]
[1768192338882,0.00375169,3158.9,3157.8,0.96511777]
[1768192339082,0.88123346,3158.8,3157.8,0.96511777]
[1768192339287,0.88123346,3158.7,3157.8,0.96511777]
[1768192339490,0.00375169,3158.9,3157.8,0.96511777]
[1768192339684,0.88126593,3158.8,3158.0,0.96511777]
[1768192339889,0.00375169,3158.9,3158.0,0.96511777]
[1768192340092,0.88129652,3158.8,3157.6,0.96511777]
[1768192340291,0.00375169,3158.9,3157.6,0.96511777]
[1768192340592,0.88128549,3158.8,3157.6,0.96511777]
[1768192340794,0.00375169,3158.9,3157.6,0.96511777]
[1768192340985,0.88128643,3158.8,3157.6,0.96511777]
[1768192341186,0.00375169,3158.9,3157.6,0.96511777]
[1768192341488,0.88136841,3158.8,3157.6,0.96511777]
[1768192341692,0.88136841,3158.7,3157.6,0.96511777]
[1768192341887,0.00375169,3158.9,3157.6,0.96511777]
[1768192342095,0.88130782,3158.8,3157.6,0.96511777]
[1768192342282,0.88130782,3158.7,3157.6,0.96511777]
[1768192342488,0.00375169,3158.9,3157.6,0.96511777]
[1768192342688,0.88138929,3158.8,3157.5,2.75186007]
[1768192342987,0.88138929,3158.7,3157.5,2.75186007]
[1768192343299,1.61653278,3158.9,3157.5,2.75186007]
[1768192343490,0.96511777,3158.4,3157.1,1.6281723]
[1768192343693,2.57789886,3158.6,3157.2,3.85811777]
[1768192345991,2.57789886,3158.6,3157.2,2.893]
[1768192346194,2.57789886,3158.6,3157.2,3.85811777]
[1768192347496,0.88144601,3158.5,3157.2,3.85811777]
[1768192347688,0.96511777,3158.4,3157.2,3.85811777]
[1768192349499,1.61278109,3158.6,3157.2,2.893]
[1768192349699,0.8823058,3158.5,3157.2,2.893]
[1768192349890,1.61278109,3158.6,3157.2,2.893]
[1768192350090,0.88230401,3158.5,3157.2,2.893]
[1768192350291,1.61278109,3158.6,3157.2,2.893]
[1768192350492,0.88232803,3158.5,3157.2,2.893]
[1768192350692,1.61278109,3158.6,3157.2,2.893]
[1768192350893,0.88233312,3158.5,3157.2,2.893]
[1768192351093,1.61278109,3158.6,3157.2,2.893]
[1768192351292,0.88231544,3158.5,3157.2,2.893]
[1768192351499,1.61278109,3158.6,3157.3,2.905]
[1768192351702,2.49522828,3158.5,3157.3,2.905]
[1768192351903,1.61278109,3158.5,3157.3,2.905]
[1768192352303,0.88251361,3158.4,3157.3,2.905]
[1768192352503,0.88251361,3158.3,3157.3,2.905]
[1768192352702,0.88251361,3158.2,3157.3,2.905]
[1768192352896,1.61278109,3158.5,3157.3,2.905]
[1768192353098,0.8824109,3158.4,3157.1,1.6281723]
[1768192353296,2.49519199,3158.3,3157.2,2.908]
[1768192353504,2.49519199,3158.2,3157.2,2.908]
[1768192353692,0.8824109,3158.1,3157.2,2.908]
[1768192358709,1.59337415,3158.6,3157.2,2.908]
[1768192359007,0.88267751,3158.5,3157.2,2.908]
[1768192359306,0.88267751,3158.4,3157.2,2.908]
[1768192359510,0.88267751,3158.3,3157.2,2.908]
[1768192359701,0.88267751,3158.2,3157.2,2.908]
[1768192359901,0.88267751,3158.1,3157.2,2.908]
[1768192360102,1.59337415,3158.6,3157.2,2.908]
[1768192360408,2.47603936,3158.5,3157.2,2.908]
[1768192360708,0.88266521,3158.4,3157.2,2.908]
[1768192360908,0.88266521,3158.3,3157.2,2.908]
[1768192361210,0.88266521,3158.2,3157.2,2.908]
[1768192361408,0.88266521,3158.1,3157.2,2.908]
[1768192361609,1.59337415,3158.5,3157.2,2.908]
[1768192361911,0.88254265,3158.4,3157.2,2.908]
[1768192362101,0.88254265,3158.3,3157.2,2.908]
[1768192362303,0.88254265,3158.2,3157.2,2.908]
[1768192362505,0.88254265,3158.1,3157.2,2.908]
[1768192362711,1.59337415,3158.5,3157.2,2.908]
[1768192363012,0.88250082,3158.4,3157.2,2.908]
[1768192363310,0.88250082,3158.3,3157.2,2.908]
[1768192363610,0.88250082,3158.2,3157.2,2.908]
[1768192363909,0.88250082,3158.1,3157.2,2.908]
[1768192364103,1.59337415,3158.5,3157.2,2.908]
[1768192364300,0.88246631,3158.4,3157.2,2.908]
[1768192364503,0.88246631,3158.3,3157.2,2.908]
[1768192364704,0.88246631,3158.2,3157.2,2.908]
[1768192364997,0.88246631,3158.1,3157.2,2.908]
[1768192365204,1.59337415,3158.5,3157.2,2.908]
[1768192365404,0.88242725,3158.4,3157.2,2.908]
[1768192365709,1.59712584,3158.9,3157.3,1.78978027]
[1768192366007,0.88257366,3158.8,3157.3,1.78978027]
[1768192366213,0.88257366,3158.7,3157.3,1.78978027]
[1768192366411,1.59712584,3158.9,3157.3,1.78978027]
[1768192366412,0.88257366,3158.6,3157.3,1.78978027]
[1768192366712,0.88257366,3158.5,3157.3,1.78978027]
[1768192366912,1.59712584,3158.9,3157.3,1.78978027]
[1768192367111,0.88283175,3158.8,3157.3,1.78978027]
[1768192367313,0.88283175,3158.7,3157.3,1.78978027]
[1768192367512,0.88283175,3158.6,3157.3,1.78978027]
[1768192367716,0.88283175,3158.5,3157.3,1.78978027]
[1768192367908,1.59712584,3158.9,3157.3,1.78978027]
[1768192368205,0.88284281,3158.8,3157.3,1.78978027]
[1768192368401,0.88284281,3158.7,3157.3,1.78978027]
[1768192368605,0.88284281,3158.6,3157.3,1.78978027]
[1768192368807,0.88284281,3158.5,3157.3,1.78978027]
[1768192369018,1.59712584,3158.9,3157.3,1.78978027]
[1768192369217,0.88285414,3158.8,3157.3,1.78978027]
[1768192369514,0.88285414,3158.7,3157.3,1.78978027]
[1768192369717,0.88285414,3158.6,3157.3,1.78978027]
[1768192369918,0.88285414,3158.5,3157.3,1.78978027]
[1768192370112,1.59712584,3158.9,3157.3,1.78978027]
[1768192370417,0.88286867,3158.8,3157.3,1.78978027]
[1768192370608,0.88286867,3158.7,3157.3,1.78978027]
[1768192370803,0.88286867,3158.6,3157.3,1.78978027]
[1768192371009,0.88286867,3158.5,3157.3,1.78978027]
[1768192371210,1.59712584,3158.9,3157.3,1.78978027]
[1768192371412,0.88299933,3158.8,3157.3,1.78978027]
[1768192371614,0.88299933,3158.7,3157.3,1.78978027]
[1768192371815,0.88299933,3158.6,3157.3,1.78978027]
[1768192372014,0.88299933,3158.5,3157.3,1.78978027]
[1768192372316,1.59712584,3158.9,3157.3,1.78978027]
[1768192372516,0.88306817,3158.8,3157.3,1.78978027]
[1768192372716,0.88306817,3158.7,3157.3,1.78978027]
[1768192372915,0.88306817,3158.6,3157.3,1.78978027]
[1768192373118,0.88306817,3158.5,3157.3,1.78978027]
[1768192373318,1.59712584,3158.9,3157.3,1.78978027]
[1768192373517,0.88314013,3158.8,3157.3,1.78978027]
[1768192373716,0.88314013,3158.7,3157.3,1.78978027]
[1768192374019,0.88314013,3158.6,3157.3,1.78978027]
[1768192374218,0.88314013,3158.5,3157.3,1.78978027]
[1768192374517,1.59712584,3158.9,3157.3,1.78978027]
[1768192374720,0.8831177,3158.8,3157.3,1.78978027]
[1768192374911,0.8831177,3158.7,3157.3,1.78978027]
[1768192375113,0.8831177,3158.6,3157.3,1.78978027]
[1768192375418,0.8831177,3158.5,3157.3,1.78978027]
[1768192375618,1.59712584,3158.9,3157.3,1.78978027]
[1768192375818,0.88309421,3158.8,3157.3,1.78978027]
[1768192376018,0.88309421,3158.7,3157.3,1.78978027]
[1768192376227,0.88309421,3158.6,3157.3,1.78978027]
[1768192376419,0.88309421,3158.5,3157.3,1.78978027]
[1768192376623,1.59712584,3158.9,3157.3,1.78978027]
[1768192376815,0.88307196,3158.8,3157.3,1.78978027]
[1768192377014,0.88307196,3158.7,3157.3,1.78978027]
[1768192377216,0.88307196,3158.6,3157.3,1.78978027]
[1768192377415,0.88307196,3158.5,3157.3,1.78978027]
[1768192377613,1.59712584,3158.9,3157.3,1.78978027]
[1768192377816,0.88391018,3158.8,3157.3,1.78978027]
[1768192378017,0.88391018,3158.7,3157.3,1.78978027]
[1768192378217,0.88391018,3158.6,3157.3,1.78978027]
[1768192378418,0.88391018,3158.5,3157.3,1.78978027]
[1768192378625,1.59712584,3158.9,3157.3,1.78978027]
[1768192378825,0.88388686,3158.8,3157.3,1.78978027]
[1768192379023,0.88388686,3158.7,3157.3,1.78978027]
[1768192379225,0.88388686,3158.6,3157.3,1.78978027]
[1768192379522,0.88388686,3158.5,3157.3,1.78978027]
[1768192379722,1.59712584,3158.9,3157.3,1.78978027]
[1768192380023,0.88386715,3158.8,3157.3,1.78978027]
[1768192380324,0.88386715,3158.7,3157.3,1.78978027]
[1768192380525,0.88386715,3158.6,3157.3,1.78978027]
[1768192380726,0.88386715,3158.5,3157.4,0.15857]
[1768192380920,1.59712584,3158.9,3157.4,0.15857]
[1768192380921,1.59712584,3158.9,3157.6,0.96463487]
[1768192381228,1.6053938,3159.7,3158.0,2.58681084]
[1768192381525,1.6053938,3159.7,3158.0,5.51981084]
[1768192382221,1.60778411,3159.7,3158.1,1.62217597]
[1768192382520,0.00239031,3159.7,3158.8,2.58681084]
[1768192382725,0.00239031,3159.7,3158.8,2.58971198]
[1768192383721,0.00239031,3159.7,3158.8,5.52371198]
[1768192385028,0.00239031,3159.7,3158.8,4.55907711]
[1768192385225,1.64135581,3159.7,3158.8,0.00290114]
[1768192386222,0.00239031,3159.7,3158.8,0.00290114]
[1768192393033,1.65567819,3159.7,3158.8,0.00290114]
[1768192393431,1.65328788,3159.5,3157.4,4.76884728]
[1768192393628,1.65328788,3159.1,3157.5,4.70341728]
[1768192393834,1.65328788,3159.6,3157.7,1.59884728]
[1768192394026,2.53000349,3159.5,3157.7,1.59884728]
[1768192394227,0.87671561,3159.4,3157.7,1.59884728]
[1768192394421,0.87671561,3159.4,3157.7,1.60125114]
[1768192394826,1.65328788,3159.3,3157.7,1.60125114]
[1768192396636,0.00239031,3159.7,3158.4,0.96463487]
[1768192396938,0.00239031,3159.7,3158.5,2.951]
[1768192400238,0.00239031,3159.7,3158.5,2.948]
[1768192402739,1.65567819,3159.7,3158.5,2.948]
[1768192402935,1.65328788,3159.5,3158.2,0.15853]
[1768192403338,1.65328788,3159.3,3158.2,0.15853]
[1768192404142,1.65328788,3159.3,3157.9,2.946]
[1768192406354,0.87832209,3159.2,3157.9,2.946]
[1768192406551,1.65328788,3159.3,3157.9,2.946]
[1768192406857,0.87832209,3159.2,3157.9,2.946]
[1768192407057,1.65328788,3159.3,3157.9,2.946]
[1768192407355,0.87543046,3159.2,3157.9,2.946]
[1768192407551,1.65328788,3159.3,3157.9,2.946]
[1768192407752,0.87567924,3159.2,3157.9,2.946]
[1768192407957,1.65328788,3159.3,3157.9,2.946]
[1768192408158,0.87567917,3159.2,3157.9,2.946]
[1768192408359,1.65328788,3159.3,3157.9,2.946]
[1768192408559,0.87596276,3159.2,3157.9,2.946]
[1768192408756,1.65328788,3159.3,3157.9,2.946]
[1768192408950,0.87596276,3159.2,3157.9,2.946]
[1768192409147,1.65328788,3159.3,3157.9,2.946]
[1768192409352,0.87596276,3159.2,3157.9,2.946]
[1768192409660,0.87596276,3159.1,3157.9,2.946]
[1768192409958,1.65328788,3159.3,3157.9,2.946]
[1768192410159,0.87629266,3159.2,3157.9,2.946]
[1768192410358,0.87629266,3159.1,3157.9,2.946]
[1768192410567,1.65328788,3159.3,3157.9,2.946]
[1768192410752,0.87629771,3159.2,3158.1,2.56348215]
[1768192410952,1.65328788,3159.6,3158.1,2.56348215]
[1768192411154,0.87625332,3159.5,3158.1,2.56348215]
[1768192411348,0.87625332,3159.4,3158.5,0.96381079]
[1768192411555,0.00239031,3159.7,3158.7,0.96381079]
[1768192411754,0.87636965,3159.6,3158.7,0.96381079]
[1768192412060,0.87636965,3159.5,3158.7,0.96381079]
[1768192412262,0.00239031,3159.7,3158.7,0.96381079]
[1768192412462,0.87636782,3159.6,3158.7,0.96381079]
[1768192412653,0.87636782,3159.5,3158.7,0.96381079]
[1768192412854,0.00239031,3159.7,3158.5,0.96381079]
[1768192413055,0.87636761,3159.6,3158.5,0.96381079]
[1768192413254,0.00239031,3159.7,3158.5,0.96381079]
[1768192413561,0.87645015,3159.6,3158.2,1.75737728]
[1768192413751,0.00239031,3159.7,3158.5,0.96381079]
[1768192413950,0.87645001,3159.6,3158.5,0.96381079]
[1768192414253,0.00239031,3159.7,3158.5,0.96381079]
[1768192414453,0.87654552,3159.6,3158.5,0.96381079]
[1768192414749,0.00239031,3159.7,3158.5,0.96381079]
[1768192414953,0.87654552,3159.6,3158.5,0.96381079]
[1768192415252,0.00239031,3159.7,3158.5,0.96381079]
[1768192415454,0.87656864,3159.6,3158.5,0.96381079]
[1768192415664,0.00239031,3159.7,3158.5,0.96381079]
[1768192415867,0.87656864,3159.6,3158.2,1.75737728]
[1768192416062,0.00239031,3159.7,3158.5,0.96381079]
[1768192416266,0.87656878,3159.6,3158.5,0.96381079]
[1768192416462,0.00239031,3159.7,3158.5,0.96381079]
[1768192416766,0.87654992,3159.6,3158.5,0.96381079]
[1768192416967,0.00239031,3159.7,3158.4,0.96381079]
[1768192417167,0.87654964,3159.6,3158.4,0.96381079]
[1768192417368,0.00239031,3159.7,3158.4,0.96381079]
[1768192417566,0.87656648,3159.6,3158.4,0.96381079]
[1768192417863,0.00239031,3159.7,3158.4,0.96381079]
[1768192418059,0.87656648,3159.6,3158.3,2.76452766]
[1768192418261,0.00239031,3159.7,3158.3,2.76452766]
[1768192418458,0.87658219,3159.6,3158.4,1.64218687]
[1768192418655,0.00239031,3159.7,3159.2,0.96381079]
[1768192419064,1.61135309,3160.4,3159.2,0.96381079]
[1768192419257,0.87650909,3160.3,3159.4,0.96381079]
[1768192419464,1.61135309,3160.8,3159.4,0.96381079]
[1768192419765,0.87609428,3160.7,3159.4,0.96381079]
[1768192419965,0.87609428,3160.6,3159.6,0.96381079]
[1768192420166,0.00385365,3160.6,3159.6,0.96381079]
[1768192420674,0.00385365,3160.6,3159.4,0.96381079]
[1768192421570,0.96766444,3160.6,3159.3,0.15848]
[1768192425278,0.00385365,3160.6,3159.4,0.96381079]
[1768192426881,0.00385365,3160.6,3159.7,0.96381079]
[1768192428178,0.00385365,3160.6,3159.7,3.92681079]
[1768192431384,0.00385365,3160.6,3159.9,0.96381079]
[1768192436885,0.96381079,3161.1,3159.9,0.96381079]
[1768192437985,0.96731922,3161.1,3159.9,0.96381079]
[1768192438488,0.96731922,3161.1,3159.8,0.15845]
[1768192439192,0.00350843,3161.1,3159.8,0.15845]
[1768192439491,0.96731922,3161.1,3159.8,0.15845]
[1768192446597,2.57757596,3161.1,3159.8,0.15845]
[1768192447291,1.61376517,3161.1,3159.9,0.96381079]
[1768192448807,0.00350843,3161.1,3160.1,0.96381079]
[1768192449107,0.00350843,3161.1,3160.1,0.96790767]
[1768192451810,0.00350843,3161.1,3160.1,0.00409688]
[1768192453009,2.46863362,3161.1,3160.1,0.00409688]
[1768192458214,1.50482283,3161.1,3160.1,0.96790767]
[1768192458419,1.50482283,3161.1,3160.1,0.00409688]
[1768192461020,0.96381079,3161.0,3160.1,0.00409688]
[1768192461214,2.46512519,3161.0,3160.1,0.00409688]
[1768192462017,1.5013144,3161.0,3160.1,0.00409688]
[1768192463710,0.00350843,3161.1,3160.1,0.00409688]
[1768192464107,0.00350843,3161.1,3160.1,0.96790767]
[1768192464614,0.00350843,3161.1,3160.1,0.00409688]
[1768192467020,0.00350843,3161.1,3160.1,0.96790767]
[1768192468110,0.00350843,3161.1,3160.1,2.57047085]
[1768192468724,0.00350843,3161.1,3160.3,0.96381079]
[1768192473329,0.00350843,3161.1,3160.2,42.40256318]
[1768192473731,0.00350843,3161.1,3160.3,1.76099318]
[1768192474830,1.5013144,3161.8,3160.3,1.76099318]
[1768192475927,1.50392324,3161.8,3160.3,1.76099318]
[1768192476634,0.00260884,3161.8,3160.6,2.42277868]
[1768192476825,0.00260884,3161.8,3160.7,4.41301838]
[1768192477226,0.00260884,3161.8,3160.8,1.46001838]
[1768192478126,1.48478392,3162.6,3160.8,1.46001838]
[1768192479232,1.48830679,3162.6,3161.3,0.9627603]
[1768192479420,0.00352287,3162.6,3161.3,2.42277868]
[1768192479626,0.00352287,3162.6,3161.4,1.46001838]
[1768192479825,0.00352287,3162.6,3161.5,4.41501838]
[1768192480025,0.00352287,3162.6,3161.6,1.46001838]
[1768192482026,0.00352287,3162.6,3161.7,0.9627603]
[1768192482226,1.48478392,3163.2,3161.7,1.1211203]
[1768192483126,1.48831517,3163.2,3161.7,2.58113868]
[1768192484733,1.48831517,3163.2,3161.8,40.8]
[1768192491439,1.48478392,3162.9,3161.7,2.968]
[1768192491838,0.00353125,3163.2,3161.7,2.968]
[1768192492635,1.48831517,3163.2,3161.7,2.968]
[1768192493332,0.00353125,3163.2,3161.8,1.61836838]
[1768192493634,1.48831517,3163.2,3161.8,0.15835]
[1768192496935,1.48831517,3163.2,3161.8,1.1211103]
[1768192501838,1.48831517,3163.2,3161.8,0.15835]
[1768192502032,1.48831517,3163.2,3161.7,2.968]
[1768192502433,1.48831517,3163.2,3161.8,2.982]
[1768192503638,1.48831517,3163.2,3161.9,2.984]
[1768192504540,1.48831517,3163.2,3161.5,0.15837]
[1768192504745,1.48831517,3163.2,3161.6,2.986]
[1768192506834,1.48831517,3163.2,3161.7,0.15836]
[1768192509935,0.00353125,3163.2,3161.7,0.15836]
[1768192510145,0.00353125,3163.2,3162.2,0.9627603]
[1768192510341,0.00353125,3163.2,3162.3,2.995]
[1768192515955,1.40620603,3163.2,3162.3,2.995]
[1768192516655,2.82099175,3164.3,3163.0,0.9627603]
[1768192516953,1.40267478,3164.4,3162.6,2.46086774]
[1768192517349,1.40267478,3164.4,3162.7,40.8]
[1768192517848,1.40649926,3164.4,3162.7,40.80375938]
[1768192520554,1.40267478,3164.3,3162.7,40.80375938]
[1768192520753,1.40267478,3164.3,3162.8,2.993]
[1768192524358,1.40267478,3164.3,3162.7,0.00375938]
[1768192524359,1.40267478,3163.9,3162.7,0.00375938]
[1768192526255,1.40267478,3163.5,3162.0,40.8]
[1768192526558,1.40267478,3163.5,3162.2,2.998]
[1768192526759,1.40267478,3163.5,3161.8,0.15835]
[1768192526958,1.40267478,3163.5,3161.9,2.999]
[1768192527262,1.40267478,3163.5,3161.9,43.80207801]
[1768192528658,1.40267478,3163.5,3161.9,3.00207801]
[1768192529162,1.40267478,3163.5,3161.9,43.80207801]
[1768192534464,1.67816467,3164.0,3162.1,1.51374121]
[1768192534669,2.48649945,3164.4,3162.5,1.51374121]
[1768192534863,2.48649945,3164.4,3162.7,1.51374121]
[1768192534864,1.52373915,3164.4,3162.7,1.51374121]
[1768192535071,1.52373915,3164.4,3162.8,40.8]
[1768192535568,0.96124888,3164.1,3162.8,41.76124888]
[1768192535758,0.96124888,3164.1,3162.8,0.96124888]
[1768192536173,0.96124888,3164.1,3162.8,41.76124888]
[1768192538167,0.96124888,3163.7,3162.8,40.8]
[1768192538773,0.96124888,3163.7,3162.6,1.711]
[1768192539271,0.96124888,3163.9,3162.6,2.67224888]
[1768192539864,1.52373915,3164.4,3162.8,0.96124888]
[1768192540066,0.96124888,3164.1,3162.8,0.96124888]
[1768192540976,0.96124888,3164.1,3162.6,4.18599009]
[1768192542376,0.96124888,3164.1,3162.6,3.22474121]
[1768192542566,0.96124888,3163.9,3162.6,4.18599009]
[1768192543076,0.96124888,3163.9,3162.6,2.67224888]
[1768192543882,0.96124888,3163.9,3162.7,3.02]
[1768192546078,0.96124888,3163.7,3162.5,0.15832]
[1768192546277,0.96124888,3163.3,3162.5,3.023]
[1768192547276,0.96124888,3163.5,3162.5,3.023]
[1768192548186,1.51991467,3163.6,3162.5,3.023]
[1768192549186,0.96124888,3163.9,3162.5,3.023]
[1768192549581,1.51991467,3164.0,3162.6,0.96124888]
[1768192549781,2.48116355,3164.0,3162.6,0.96124888]
[1768192549978,1.51991467,3164.0,3162.8,0.96124888]
[1768192551395,2.48116355,3164.0,3162.8,0.96124888]
[1768192551896,1.51991467,3164.0,3162.8,0.96124888]
[1768192552090,1.51991467,3164.0,3162.7,0.96124888]
[1768192552395,0.96124888,3163.9,3162.5,3.023]
[1768192552600,2.48116355,3163.9,3162.5,3.023]
[1768192552887,0.96124888,3163.5,3162.6,3.029]
[1768192555486,1.51991467,3163.7,3162.6,3.029]
[1768192555686,0.96124888,3163.6,3162.6,3.029]
[1768192557897,1.51991467,3163.7,3162.6,3.029]
[1768192559992,1.51991467,3164.1,3162.8,0.96124888]
[1768192560392,0.96124888,3164.0,3162.6,3.99024888]
[1768192561399,1.51991467,3164.1,3162.8,0.96124888]
[1768192561599,2.48116355,3164.1,3162.8,0.96124888]
[1768192562298,0.96124888,3163.9,3162.6,3.029]
[1768192562488,0.00382448,3164.4,3163.1,0.96124888]
[1768192562689,0.00382448,3164.4,3163.3,0.96124888]
[1768192562892,0.00382448,3164.4,3163.1,0.96124888]
[1768192563297,0.96507336,3164.4,3163.1,0.96124888]
[1768192564999,0.00382448,3164.4,3163.1,0.96124888]
[1768192565802,0.00382448,3164.4,3163.3,0.96124888]
[1768192566900,0.00382448,3164.4,3163.7,0.96124888]
[1768192567301,0.00382448,3164.4,3163.5,0.96124888]
[1768192567504,0.00382448,3164.4,3163.7,0.96124888]
[1768192568802,1.48591588,3165.1,3163.9,0.96124888]
[1768192569303,2.82099175,3165.6,3164.3,0.96124888]
[1768192569498,2.44716476,3165.7,3164.3,0.96124888]
[1768192569699,2.45058396,3165.7,3164.3,0.96487775]
[1768192569905,0.96124888,3165.5,3164.3,0.00362887]
[1768192570206,1.48933508,3165.7,3164.3,0.00362887]
[1768192570407,0.96124888,3165.6,3164.3,0.00362887]
[1768192571402,1.48933508,3165.7,3164.3,0.00362887]
[1768192571609,2.45058396,3165.7,3164.4,0.96124888]
[1768192572916,2.45058396,3165.7,3164.3,0.96487775]
[1768192573114,2.360143,3165.5,3164.3,0.00362887]
[1768192573306,0.96124888,3165.1,3164.3,0.00362887]
[1768192573709,0.96124888,3165.3,3164.3,0.00362887]
[1768192574917,2.360143,3165.3,3164.3,0.00362887]
[1768192575314,0.96124888,3165.1,3164.3,0.00362887]
[1768192575814,0.96124888,3165.2,3164.3,0.00362887]
[1768192576010,0.96124888,3165.0,3163.2,1.4379947]
[1768192576210,0.96124888,3164.5,3163.4,0.15827]
[1768192576415,1.39889412,3164.8,3163.4,0.15827]
[1768192576416,0.96124888,3164.7,3163.4,0.15827]
[1768192576615,1.39889412,3164.8,3163.4,1.11951888]
[1768192576807,1.39889412,3164.8,3163.4,0.15827]
[1768192577016,1.39889412,3164.8,3163.4,1.12304882]
[1768192577212,2.360143,3164.8,3163.4,1.12304882]
[1768192577923,1.39889412,3164.7,3163.4,1.12304882]
[1768192578225,1.39889412,3164.7,3163.4,0.96477882]
[1768192578818,2.360143,3164.4,3163.4,0.00352994]
[1768192579019,1.39889412,3164.4,3163.4,0.00352994]
[1768192579226,1.39889412,3164.4,3163.4,0.96477882]
[1768192579414,1.39889412,3164.4,3162.2,1.4379947]
[1768192579618,1.39889412,3164.3,3163.1,0.96124888]
[1768192579820,2.360143,3164.3,3162.9,0.96124888]
[1768192580126,0.96124888,3164.1,3162.7,0.96124888]
[1768192580425,0.96124888,3164.1,3162.8,0.1583]
[1768192581128,1.39889412,3164.3,3162.8,1.5962947]
[1768192581326,1.39889412,3164.3,3162.9,0.96124888]
[1768192581922,1.39889412,3164.7,3163.3,0.96124888]
[1768192582123,0.96124888,3164.6,3163.3,0.96124888]
[1768192582428,0.96124888,3164.2,3163.1,0.15829]
[1768192584821,0.96124888,3164.0,3162.8,3.036]
[1768192585330,1.39889412,3164.1,3162.8,3.99724888]
[1768192585529,0.96124888,3164.2,3162.8,3.99724888]
[1768192586117,1.39889412,3164.5,3162.8,3.99724888]
[1768192586323,0.96124888,3163.6,3162.7,0.0039457]
[1768192586729,0.96124888,3163.4,3162.7,0.0039457]
[1768192587031,0.96351361,3163.4,3162.7,0.00114918]
[1768192587325,0.00226473,3163.4,3162.7,0.00114918]
[1768192587830,0.96124888,3163.2,3162.7,0.00114918]
[1768192588032,0.96124888,3163.0,3162.1,3.041]
[1768192588226,2.360143,3163.2,3162.1,3.041]
[1768192589131,0.96124888,3163.0,3162.1,3.04442056]
[1768192589333,1.39889412,3163.2,3162.1,3.04442056]
[1768192593534,0.00226473,3163.4,3162.1,3.04442056]
[1768192594330,0.00226473,3163.4,3162.2,1.35895465]
[1768192600328,0.00226473,3163.4,3162.1,0.00342056]
[1768192600938,1.45807673,3163.4,3162.1,0.00342056]
[1768192603541,1.61634673,3163.4,3162.1,0.00342056]
[1768192611345,2.41783326,3163.2,3162.1,0.00342056]
[1768192612043,1.455812,3163.1,3162.1,0.00342056]
[1768192617051,0.00226473,3163.4,3162.1,0.00342056]
[1768192627665,0.00226473,3163.4,3162.1,1.47629792]
[1768192635770,0.00226473,3163.4,3162.3,1.43685954]
[1768192645479,0.00226473,3163.4,3162.1,0.00342056]
[1768192648677,0.00226473,3163.4,3162.1,1.4402801]
[1768192655182,0.00226473,3163.4,3162.1,1.5986201]
[1768192655384,0.00226473,3163.4,3162.5,1.55226701]
[1768192672791,0.96145701,3163.2,3162.1,1.55568757]
[1768192672996,0.96145701,3162.6,3161.4,3.95632752]
[1768192673189,0.96145701,3162.3,3161.3,3.165]
[1768192673595,0.96145701,3162.3,3161.2,1.55226701]
[1768192674094,0.96145701,3162.3,3161.2,1.55537787]
[1768192674997,0.96145701,3162.5,3161.3,1.55226701]
[1768192675697,0.96145701,3162.7,3161.4,0.96145701]
[1768192675890,0.96145701,3162.7,3161.5,1.55226701]
[1768192676493,0.96145701,3162.9,3161.7,1.55226701]
[1768192676694,0.96145701,3163.1,3161.9,1.55226701]
[1768192679405,0.96145701,3162.7,3161.5,1.55226701]
[1768192680191,0.96145701,3162.5,3161.5,1.55226701]
[1768192684307,1.40145964,3163.1,3161.5,1.55226701]
[1768192684500,0.96145701,3162.6,3161.5,1.55226701]
[1768192684804,1.40145964,3163.1,3161.5,1.55226701]
[1768192685003,0.96145701,3162.6,3161.5,1.55226701]
[1768192685601,1.40145964,3163.1,3161.6,1.47909684]
[1768192685799,0.96145701,3162.7,3161.6,1.47909684]
[1768192693010,0.96145701,3162.5,3161.6,1.47909684]
[1768192695008,0.96145701,3162.7,3161.6,1.47909684]
[1768192695210,1.40145964,3163.1,3161.7,1.42675206]
[1768192695509,0.96145701,3163.0,3161.7,1.42675206]
[1768192695708,0.96145701,3162.8,3161.7,1.42675206]
[1768192696914,0.96145701,3162.9,3161.7,1.42675206]
[1768192702818,1.66820865,3163.3,3161.7,1.42675206]
[1768192703025,0.96145701,3163.0,3161.8,0.96145701]
[1768192703218,0.96145701,3163.2,3161.8,2.38820907]
[1768192703522,1.50992865,3163.3,3162.0,0.96145701]
[1768192703822,0.00226473,3163.4,3162.2,2.38820907]
[1768192705024,0.00226473,3163.4,3162.2,1.42675206]
[1768192705620,0.96145701,3163.3,3162.2,1.42675206]
[1768192706010,0.00226473,3163.4,3162.2,2.38820907]
[1768192706220,0.00226473,3163.4,3162.5,1.42675206]
[1768192708624,0.00226473,3163.4,3162.7,1.42675206]
[1768192708819,0.96145701,3164.0,3162.7,1.42675206]
[1768192709216,0.96145701,3163.9,3162.7,1.42675206]
[1768192709421,0.96145701,3164.0,3162.7,1.42675206]
[1768192709617,1.50992865,3164.5,3162.9,1.42675206]
[1768192709824,0.96145701,3164.2,3162.9,1.42675206]
[1768192711532,0.96145701,3164.0,3162.9,1.42675206]
[1768192712525,0.96145701,3163.6,3162.5,1.42675206]
[1768192716234,0.96145701,3163.8,3162.5,1.42675206]
[1768192716533,0.96145701,3163.8,3162.6,1.51131517]
[1768192717334,0.96139749,3164.2,3162.6,1.51131517]
[1768192720334,1.50992865,3164.3,3162.6,1.51131517]
[1768192729339,0.00275555,3164.5,3162.8,1.66961517]
[1768192729543,0.00275555,3164.5,3163.2,1.51131517]
[1768192731538,1.47754909,3164.5,3162.8,1.51131517]
[1768192731744,1.47479354,3164.1,3162.4,1.51131517]
[1768192732543,0.96139749,3163.8,3162.4,1.51131517]
[1768192733043,2.59716658,3164.5,3162.4,1.51131517]
[1768192737149,1.47754909,3164.5,3162.6,1.51131517]
[1768192739643,1.47479354,3164.4,3162.6,1.51131517]